bitfinex-derivatives/quotes_BTCF0:USTF0_20241020
["timestamp","ask_amount","ask_price","bid_price","bid_amount"]
[1729467576871,0.001,69083.0,69080.0,0.07239]
[1729467577378,0.072389,69081.0,69077.0,0.072393]
[1729467577671,0.072389,69081.0,69073.0,0.0318]
[1729467577866,0.072389,69081.0,69074.0,0.072396]
[1729467578176,0.001,69083.0,69073.0,0.0318]
[1729467578355,0.073387,69083.0,69077.0,0.072393]
[1729467578555,0.073387,69083.0,69077.0,0.074393]
[1729467578771,0.073387,69083.0,69077.0,0.002]
[1729467578968,0.073387,69083.0,69080.0,0.07239]
[1729467579359,0.072389,69081.0,69077.0,0.072393]
[1729467579564,0.072389,69081.0,69077.0,0.073393]
[1729467580161,0.12809343,69084.0,69079.0,0.072391]
[1729467580664,0.001,69083.0,69079.0,0.072391]
[1729467581169,0.07239,69080.0,69077.0,0.001]
[1729467581372,0.072391,69079.0,69077.0,0.001]
[1729467581568,0.072392,69078.0,69077.0,0.001]
[1729467582775,0.072392,69078.0,69074.0,0.072396]
[1729467582961,0.072392,69078.0,69073.0,0.0318]
[1729467583164,0.072392,69078.0,69076.0,0.072394]
[1729467583572,0.072392,69078.0,69077.0,0.002]
[1729467583967,0.072392,69078.0,69076.0,0.072394]
[1729467584774,0.072392,69078.0,69077.0,0.074393]
[1729467584970,0.072392,69078.0,69077.0,0.077393]
[1729467585773,0.072392,69078.0,69077.0,0.074393]
[1729467586369,0.072392,69078.0,69077.0,0.072393]
[1729467586572,0.072392,69078.0,69077.0,0.075393]
[1729467586968,0.072392,69078.0,69077.0,0.077393]
[1729467589278,0.072392,69078.0,69077.0,0.13517785]
[1729467590175,0.072392,69078.0,69077.0,0.077393]
[1729467592089,0.072392,69078.0,69077.0,0.005]
[1729467593174,0.072392,69078.0,69077.0,0.06292846]
[1729467594369,0.072392,69078.0,69077.0,0.005]
[1729467601879,0.072401,69070.0,69069.0,0.00076]
[1729467602075,0.072398,69073.0,69063.0,0.0328]
[1729467602076,0.072403,69068.0,69067.0,0.07244522]
[1729467602289,0.072404,69067.0,69064.0,0.07244522]
[1729467603189,0.072404,69067.0,69063.0,0.0328]
[1729467603190,0.072404,69067.0,69063.0,0.10524522]
[1729467603586,0.072404,69067.0,69063.0,0.17765322]
[1729467603782,0.073404,69067.0,69064.0,0.005]
[1729467604391,0.072405,69066.0,69064.0,0.077407]
[1729467605389,0.072405,69066.0,69064.0,0.072407]
[1729467605590,0.002,69067.0,69063.0,0.0348]
[1729467605793,0.072407,69064.0,69063.0,0.0348]
[1729467605995,0.072407,69064.0,69063.0,0.10724522]
[1729467606183,0.072407,69064.0,69063.0,0.0348]
[1729467606379,0.072407,69064.0,69063.0,0.0338]
[1729467606694,0.072407,69064.0,69063.0,0.106208]
[1729467607100,0.073407,69064.0,69063.0,0.107208]
[1729467607793,0.073407,69064.0,69063.0,0.17965322]
[1729467608097,0.073407,69064.0,69063.0,0.2165864]
[1729467608292,0.073407,69064.0,69063.0,0.28893116]
[1729467608801,0.10109512,69064.0,69063.0,0.28993116]
[1729467609002,0.10109512,69064.0,69063.0,0.21752316]
[1729467609298,0.10109512,69064.0,69063.0,0.05987272]
[1729467609593,0.10109512,69064.0,69063.0,0.002]
[1729467613595,0.10109512,69064.0,69063.0,0.04537304]
[1729467615794,0.10109512,69064.0,69063.0,0.002]
[1729467618303,0.46189512,69064.0,69063.0,0.002]
[1729467618500,0.38948812,69064.0,69055.0,0.0328]
[1729467618706,0.3608,69056.0,69055.0,0.0328]
[1729467619511,0.433215,69056.0,69055.0,0.0328]
[1729467619712,0.433215,69056.0,69055.0,0.0358]
[1729467621820,0.435215,69056.0,69055.0,0.0348]
[1729467626014,0.46186608,69056.0,69055.0,0.0348]
[1729467628312,0.46186608,69056.0,69055.0,0.09267272]
[1729467628701,0.46186608,69056.0,69055.0,0.0348]
[1729467631015,0.10106608,69056.0,69055.0,0.0348]
[1729467633607,0.38945108,69056.0,69052.0,0.05788069]
[1729467633809,0.38945108,69056.0,69046.0,0.0308]
[1729467633810,0.07242,69052.0,69051.0,0.05788069]
[1729467634011,0.07242,69052.0,69042.0,0.0329]
[1729467634012,0.0318,69055.0,69049.0,0.05788069]
[1729467634321,0.072427,69045.0,69044.0,0.05788069]
[1729467634521,0.072428,69044.0,69042.0,0.09078069]
[1729467634820,0.072429,69043.0,69042.0,0.0329]
[1729467635921,0.073429,69043.0,69042.0,0.0349]
[1729467636620,0.073429,69043.0,69042.0,0.002]
[1729467637209,0.074429,69043.0,69042.0,0.002]
[1729467637415,0.002,69043.0,69042.0,0.002]
[1729467637612,0.10034537,69043.0,69042.0,0.002]
[1729467637816,0.074429,69043.0,69042.0,0.002]
[1729467654636,0.435229,69043.0,69042.0,0.002]
[1729467655234,0.002,69043.0,69042.0,0.07443]
[1729467657135,0.002,69043.0,69042.0,0.13231069]
[1729467657526,0.002,69043.0,69042.0,0.07443]
[1729467661136,0.002,69043.0,69042.0,0.13228795]
[1729467662235,0.002,69043.0,69042.0,0.07443]
[1729467663835,0.002,69043.0,69042.0,0.002]
[1729467664042,0.002,69043.0,69042.0,0.0599203]
[1729467666146,0.002,69043.0,69042.0,0.05992371]
[1729467666339,0.002,69043.0,69042.0,0.002]
[1729467666643,0.002,69043.0,69042.0,0.05992368]
[1729467667041,0.002,69043.0,69042.0,0.002]
[1729467667235,0.002,69043.0,69042.0,0.05992368]
[1729467667739,0.002,69043.0,69042.0,0.002]
[1729467667945,0.002,69043.0,69042.0,0.07443]
[1729467669541,0.002,69043.0,69042.0,0.10483]
[1729467670134,0.002,69043.0,69042.0,0.21524426]
[1729467670335,0.3608,69050.0,69042.0,0.14281426]
[1729467670535,0.3608,69050.0,69049.0,0.05791754]
[1729467670749,0.3608,69050.0,69048.0,0.05791754]
[1729467670944,0.3608,69050.0,69049.0,0.05791754]
[1729467671150,0.38685562,69050.0,69049.0,0.05791754]
[1729467671551,0.38785562,69050.0,69048.0,0.05791754]
[1729467671746,0.02705562,69050.0,69049.0,0.05791754]
[1729467671947,0.02705562,69050.0,69049.0,0.13033483]
[1729467672137,0.02805562,69050.0,69049.0,0.13032826]
[1729467672451,0.02805562,69050.0,69049.0,0.072423]
[1729467673246,0.002,69050.0,69049.0,0.13032311]
[1729467673449,0.002,69050.0,69049.0,0.072423]
[1729467674046,0.001,69050.0,69049.0,0.25722413]
[1729467674245,0.002,69050.0,69049.0,0.25722269]
[1729467674440,0.002,69050.0,69049.0,0.25722203]
[1729467675252,0.002,69050.0,69049.0,0.14681993]
[1729467675849,0.002,69050.0,69049.0,0.10016132]
[1729467676051,0.002,69050.0,69049.0,0.074423]
[1729467682758,1.5,69063.0,69059.0,0.072412]
[1729467682958,1.5,69063.0,69062.0,0.072409]
[1729467682959,0.00116,69063.0,69062.0,0.072409]
[1729467683259,0.072407,69064.0,69062.0,0.072409]
[1729467683657,0.09809052,69064.0,69062.0,0.072409]
[1729467683861,0.002,69063.0,69062.0,0.072409]
[1729467684750,0.003,69063.0,69062.0,0.072409]
[1729467686350,0.005,69063.0,69062.0,0.072409]
[1729467694264,0.00217237,69070.0,69062.0,0.072409]
[1729467694454,0.00217237,69070.0,69069.0,0.072402]
[1729467695457,0.0642,69081.0,69076.0,0.072394]
[1729467695458,0.02558086,69077.0,69076.0,0.072394]
[1729467695659,0.0642,69081.0,69078.0,0.072392]
[1729467696256,0.0316,69081.0,69080.0,0.07239]
[1729467696465,0.072382,69089.0,69078.0,0.072392]
[1729467696466,0.072382,69089.0,69084.0,0.072386]
[1729467696674,0.104082,69088.0,69084.0,0.072386]
[1729467696968,1.8608,69087.0,69084.0,0.072386]
[1729467697471,1.9591697,69087.0,69084.0,0.072386]
[1729467698567,1.9631697,69087.0,69084.0,0.072386]
[1729467698770,0.072384,69086.0,69084.0,0.072386]
[1729467699977,0.001,69086.0,69072.0,0.05784569]
[1729467700273,0.001,69086.0,69076.0,0.072394]
[1729467700274,0.433189,69081.0,69076.0,0.072394]
[1729467700457,0.3608,69081.0,69079.0,0.072391]
[1729467701271,0.072386,69084.0,69071.0,0.05784569]
[1729467701471,0.072386,69084.0,69079.0,0.072391]
[1729467701664,0.031,69085.0,69071.0,0.05784569]
[1729467701865,0.001,69086.0,69085.0,0.072385]
[1729467702262,0.002,69086.0,69085.0,0.072385]
[1729467702976,0.3925,69088.0,69085.0,0.072385]
[1729467703172,0.002,69086.0,69085.0,0.072385]
[1729467704274,0.005,69086.0,69085.0,0.072385]
[1729467705579,0.003,69086.0,69085.0,0.072385]
[1729467707076,0.005,69086.0,69085.0,0.072385]
[1729467711772,0.005,69086.0,69085.0,0.064385]
[1729467722377,0.00120001,69091.0,69090.0,0.07238]
[1729467722695,0.072369,69101.0,69090.0,0.07238]
[1729467722696,0.072369,69101.0,69096.0,0.072373]
[1729467722879,1.5,69100.0,69099.0,0.07237]
[1729467723084,0.00217177,69108.0,69099.0,0.3608]
[1729467723294,0.00217177,69108.0,69100.0,0.072369]
[1729467723592,0.00217177,69108.0,69106.0,0.072363]
[1729467723999,0.00217177,69108.0,69107.0,0.433162]
[1729467725081,0.00517177,69108.0,69107.0,0.433162]
[1729467725492,0.00617177,69108.0,69107.0,0.433162]
[1729467726690,0.00317177,69108.0,69107.0,0.433162]
[1729467726900,0.00617177,69108.0,69107.0,0.433162]
[1729467727490,0.00317177,69108.0,69107.0,0.433162]
[1729467727797,0.00617177,69108.0,69107.0,0.433162]
[1729467728286,0.3608,69132.0,69107.0,0.867282]
[1729467728484,0.0327,69135.0,69131.0,0.072337]
[1729467728684,0.3608,69138.0,69127.0,0.3608]
[1729467728889,1.8608,69138.0,69136.0,0.072331]
[1729467729187,1.8608,69138.0,69127.0,0.3608]
[1729467729188,1.88632613,69138.0,69127.0,0.3608]
[1729467729389,0.3608,69132.0,69124.0,0.072344]
[1729467730188,0.3608,69132.0,69121.0,0.0965]
[1729467730389,0.3608,69132.0,69127.0,0.072341]
[1729467731392,0.3628,69132.0,69127.0,0.072341]
[1729467731786,0.3618,69132.0,69127.0,0.072341]
[1729467731988,0.3638,69132.0,69127.0,0.072341]
[1729467733095,0.3638,69132.0,69131.0,0.072337]
[1729467733292,0.003,69132.0,69131.0,0.072337]
[1729467733500,0.3608,69145.0,69142.0,0.072325]
[1729467733801,0.0942,69157.0,69142.0,0.072325]
[1729467733802,0.02863846,69143.0,69142.0,0.072325]
[1729467733983,0.00217002,69143.0,69142.0,0.072325]
[1729467734593,0.00417002,69143.0,69142.0,0.072325]
[1729467735292,0.00417002,69143.0,69142.0,0.433125]
[1729467735589,0.08777198,69157.0,69148.0,0.072318]
[1729467735794,0.0614,69157.0,69148.0,0.072318]
[1729467736885,0.0877918,69157.0,69148.0,0.072318]
[1729467737082,0.0907918,69157.0,69142.0,0.3608]
[1729467737287,0.0907918,69157.0,69143.0,0.072324]
[1729467737489,0.0907918,69157.0,69149.0,0.072318]
[1729467737691,0.0907918,69157.0,69142.0,0.3608]
[1729467737892,0.0907918,69157.0,69149.0,0.072318]
[1729467738496,0.0907918,69157.0,69150.0,0.072317]
[1729467738700,0.0907918,69157.0,69142.0,0.3608]
[1729467739001,0.0907918,69157.0,69151.0,0.072315]
[1729467740198,0.0897918,69157.0,69151.0,0.072315]
[1729467740398,0.0907918,69157.0,69151.0,0.072315]
[1729467741702,0.0907918,69157.0,69152.0,0.072314]
[1729467741912,0.0907918,69157.0,69155.0,0.072311]
[1729467742099,0.0887918,69157.0,69155.0,0.072311]
[1729467742303,0.0605918,69157.0,69155.0,0.072311]
[1729467742506,0.0293918,69157.0,69156.0,0.072311]
[1729467742712,0.0273918,69157.0,69156.0,0.072311]
[1729467743004,0.0293918,69157.0,69156.0,0.072311]
[1729467743392,0.0273918,69157.0,69156.0,0.072311]
[1729467743701,0.0293918,69157.0,69156.0,0.072311]
[1729467744295,0.003,69157.0,69156.0,0.072311]
[1729467749121,1.52640151,69164.0,69154.0,0.3608]
[1729467749122,1.5,69164.0,69154.0,0.40371553]
[1729467749417,1.5,69164.0,69157.0,0.072309]
[1729467749606,1.5,69164.0,69157.0,0.433109]
[1729467749996,1.5,69164.0,69158.0,0.072309]
[1729467750194,1.502,69164.0,69158.0,0.072309]
[1729467750398,1.503,69164.0,69158.0,0.072309]
[1729467750605,1.52955786,69164.0,69158.0,0.072309]
[1729467750996,0.3608,69162.0,69158.0,0.072309]
[1729467752102,0.3608,69162.0,69158.0,0.11522453]
[1729467753103,0.3628,69162.0,69161.0,0.04291553]
[1729467753500,0.3638,69162.0,69161.0,0.04291553]
[1729467754218,0.3638,69162.0,69158.0,0.12999186]
[1729467755102,0.3638,69162.0,69160.0,0.05768286]
[1729467755610,0.3618,69162.0,69160.0,0.05768286]
[1729467755813,0.3638,69162.0,69160.0,0.05768286]
[1729467756013,0.869865,69162.0,69161.0,0.04317469]
[1729467756205,0.434105,69162.0,69160.0,0.05768286]
[1729467756405,0.436105,69162.0,69160.0,0.05768286]
[1729467756806,0.436105,69162.0,69159.0,0.05768286]
[1729467757012,0.436105,69162.0,69158.0,0.05768286]
[1729467757214,0.436105,69162.0,69158.0,0.07210358]
[1729467758304,0.3608,69159.0,69158.0,0.06410358]
[1729467758510,0.3608,69159.0,69153.0,0.072314]
[1729467758710,0.3608,69159.0,69154.0,0.1102458]
[1729467758904,0.3608,69159.0,69155.0,0.1102458]
[1729467759121,0.3608,69159.0,69151.0,0.1588403]
[1729467759415,0.3608,69159.0,69152.0,0.11024581]
[1729467759612,0.3608,69159.0,69153.0,0.11024581]
[1729467759812,0.3608,69159.0,69154.0,0.11024581]
[1729467759813,0.3618,69159.0,69154.0,0.11024581]
[1729467760013,0.3618,69159.0,69155.0,0.11024581]
[1729467760215,0.3618,69159.0,69152.0,0.072315]
[1729467760511,0.3618,69159.0,69153.0,0.1102458]
[1729467760704,0.3618,69159.0,69154.0,0.1102458]
[1729467760905,0.3618,69159.0,69155.0,0.1102458]
[1729467761101,0.3638,69159.0,69153.0,0.072314]
[1729467761308,0.3638,69159.0,69154.0,0.1102458]
[1729467761513,0.3638,69159.0,69155.0,0.1102458]
[1729467761712,0.3638,69159.0,69154.0,0.072312]
[1729467761905,0.3638,69159.0,69155.0,0.11024579]
[1729467762112,0.3628,69159.0,69156.0,0.11024579]
[1729467762307,0.3638,69159.0,69157.0,0.11024579]
[1729467762512,0.3638,69159.0,69154.0,0.072312]
[1729467762712,0.3638,69159.0,69155.0,0.11024579]
[1729467763017,0.3618,69159.0,69156.0,0.11024579]
[1729467763210,0.3618,69159.0,69157.0,0.11024579]
[1729467763211,0.3638,69159.0,69157.0,0.11024579]
[1729467763411,0.3638,69159.0,69158.0,0.11024579]
[1729467763611,0.3618,69159.0,69158.0,0.11024579]
[1729467763821,0.3638,69159.0,69158.0,0.11024579]
[1729467765317,0.3628,69159.0,69158.0,0.11024579]
[1729467765522,0.3638,69159.0,69158.0,0.11024579]
[1729467765912,0.3638,69159.0,69158.0,0.19699131]
[1729467766114,0.3628,69159.0,69158.0,0.19699128]
[1729467766317,0.3638,69159.0,69158.0,0.19699128]
[1729467767413,0.3638,69159.0,69158.0,0.26930028]
[1729467769216,0.3638,69159.0,69158.0,0.18255479]
[1729467769721,0.3638,69159.0,69158.0,0.11024579]
[1729467771614,0.3638,69159.0,69158.0,0.11024393]
[1729467773615,0.3638,69159.0,69156.0,0.064311]
[1729467774526,0.003,69159.0,69156.0,0.064311]
[1729467774726,0.3608,69158.0,69156.0,0.064311]
[1729467775917,0.3618,69158.0,69156.0,0.064311]
[1729467776111,0.3638,69158.0,69156.0,0.064311]
[1729467777120,0.3638,69158.0,69157.0,0.05785568]
[1729467777823,0.3638,69158.0,69157.0,0.05785561]
[1729467778219,0.3638,69158.0,69157.0,0.07231]
[1729467778924,0.3638,69158.0,69156.0,0.05785561]
[1729467779224,0.3638,69158.0,69156.0,0.07231]
[1729467780235,0.3638,69158.0,69155.0,0.05785561]
[1729467780420,0.3608,69156.0,69151.0,0.04340426]
[1729467780720,0.3608,69156.0,69135.0,0.36296951]
[1729467780721,0.3608,69156.0,69143.0,0.05785561]
[1729467780926,0.3608,69156.0,69143.0,0.05787874]
[1729467780927,0.3608,69144.0,69143.0,0.05787874]
[1729467781115,0.48952,69144.0,69141.0,0.05787874]
[1729467781314,0.48952,69144.0,69139.0,0.0315]
[1729467781521,0.48952,69144.0,69138.0,0.05787874]
[1729467781522,0.072327,69140.0,69135.0,0.06004825]
[1729467781718,0.48952,69144.0,69135.0,0.00216951]
[1729467781719,0.072331,69137.0,69135.0,0.00216951]
[1729467782927,0.072331,69137.0,69135.0,0.01016951]
[1729467783120,0.09859896,69137.0,69135.0,0.01016951]
[1729467784225,0.02626796,69137.0,69136.0,0.072332]
[1729467784534,0.3618,69137.0,69136.0,0.072332]
[1729467785222,0.3628,69137.0,69136.0,0.072332]
[1729467785725,0.3618,69137.0,69136.0,0.085332]
[1729467785921,0.3618,69137.0,69136.0,0.093332]
[1729467785922,0.3628,69137.0,69136.0,0.093332]
[1729467788925,0.3628,69137.0,69136.0,0.085332]
[1729467789325,0.435131,69137.0,69136.0,0.021]
[1729467796832,0.3628,69137.0,69136.0,0.021]
[1729467797034,0.3628,69137.0,69136.0,0.093332]
[1729467797235,0.3628,69137.0,69136.0,0.021]
[1729467797436,0.435131,69137.0,69136.0,0.021]
[1729467797731,0.563891,69137.0,69136.0,0.021]
[1729467803938,0.49156,69137.0,69136.0,0.021]
[1729467804339,0.49156,69137.0,69136.0,0.013]
[1729467804736,0.3628,69137.0,69136.0,0.013]
[1729467805740,0.3628,69137.0,69136.0,0.085332]
[1729467807735,0.002,69137.0,69136.0,0.085332]
[1729467809039,0.002,69137.0,69136.0,0.013]
[1729467809647,0.074331,69137.0,69136.0,0.013]
[1729467811243,0.002,69137.0,69136.0,0.013]
[1729467811443,0.002,69137.0,69136.0,0.43167765]
[1729467811644,0.002,69137.0,69136.0,0.446132]
[1729467811836,0.002,69137.0,69136.0,0.085332]
[1729467812947,0.3608,69148.0,69136.0,0.085332]
[1729467812948,0.072322,69145.0,69140.0,0.072327]
[1729467813245,0.072325,69142.0,69141.0,0.0625]
[1729467815055,0.073325,69142.0,69141.0,0.0705]
[1729467815439,0.074325,69142.0,69141.0,0.0775]
[1729467817435,0.074325,69142.0,69141.0,0.015]
[1729467819842,0.074325,69142.0,69141.0,0.013]
[1729467822256,0.002,69142.0,69141.0,0.013]
[1729467823548,0.002,69142.0,69141.0,0.085326]
[1729467835158,0.002,69142.0,69141.0,0.077326]
[1729467838767,0.002,69142.0,69141.0,0.13517187]
[1729467840874,0.002,69142.0,69141.0,0.077326]
[1729467849168,0.002,69142.0,69141.0,0.005]
[1729467849468,0.435125,69142.0,69141.0,0.005]
[1729467850673,0.3628,69142.0,69141.0,0.005]
[1729467850976,0.3628,69142.0,69141.0,0.077326]
[1729467855680,0.3628,69142.0,69141.0,0.005]
[1729467857371,0.435125,69142.0,69141.0,0.005]
[1729467860280,0.435125,69142.0,69128.0,0.07231232]
[1729467860281,0.072326,69141.0,69127.0,0.06004866]
[1729467860478,0.79668,69142.0,69127.0,0.00216955]
[1729467860479,0.43314,69128.0,69127.0,0.00216955]
[1729467860664,0.3608,69128.0,69127.0,0.00216955]
[1729467860870,1.8608,69128.0,69127.0,0.00216955]
[1729467861981,1.8618,69128.0,69127.0,0.00316955]
[1729467862173,1.8618,69128.0,69127.0,0.00416955]
[1729467862676,1.88841266,69128.0,69127.0,0.00416955]
[1729467862973,1.88941266,69128.0,69127.0,0.00416955]
[1729467866270,1.96175266,69128.0,69127.0,0.00416955]
[1729467867984,1.96075266,69128.0,69127.0,0.00316955]
[1729467868187,1.96075266,69128.0,69127.0,0.00216955]
[1729467869078,1.95975266,69128.0,69127.0,0.00216955]
[1729467870177,0.072345,69124.0,69118.0,0.10325]
[1729467870381,0.3608,69119.0,69110.0,0.05787911]
[1729467870681,0.3608,69119.0,69115.0,0.072353]
[1729467870882,1.5,69118.0,69115.0,0.072353]
[1729467871083,1.5,69118.0,69116.0,0.072352]
[1729467871579,0.43315,69119.0,69116.0,0.072352]
[1729467871773,0.43415,69119.0,69116.0,0.072352]
[1729467872271,0.002,69118.0,69116.0,0.072352]
[1729467872769,0.43315,69119.0,69116.0,0.072352]
[1729467872970,0.43515,69119.0,69116.0,0.072352]
[1729467873167,0.46178774,69119.0,69116.0,0.072352]
[1729467874277,0.46078774,69119.0,69116.0,0.072352]
[1729467874585,0.002,69118.0,69116.0,0.072352]
[1729467874967,0.001,69118.0,69116.0,0.072352]
[1729467875182,0.46078774,69119.0,69116.0,0.072352]
[1729467875387,0.46178774,69119.0,69116.0,0.072352]
[1729467875680,0.38943774,69119.0,69112.0,0.0627]
[1729467875884,0.072351,69117.0,69115.0,0.072353]
[1729467877174,0.072351,69117.0,69116.0,0.072353]
[1729467877674,0.073351,69117.0,69116.0,0.072353]
[1729467877983,0.001,69117.0,69116.0,0.072353]
[1729467878784,0.002,69117.0,69116.0,0.072353]
[1729467885480,0.002,69117.0,69109.0,0.10291232]
[1729467885481,0.002,69117.0,69110.0,0.05787911]
[1729467885680,0.002,69117.0,69105.0,0.05787911]
[1729467885881,0.002,69117.0,69101.0,0.0318]
[1729467885882,0.3608,69106.0,69101.0,0.0318]
[1729467886284,0.072367,69103.0,69100.0,0.07453961]
[1729467886696,0.3608,69106.0,69101.0,0.072368]
[1729467886876,0.433163,69106.0,69101.0,0.072368]
[1729467887073,0.433163,69106.0,69102.0,0.072367]
[1729467887289,0.433163,69106.0,69100.0,0.00217061]
[1729467887492,0.433163,69106.0,69103.0,0.072365]
[1729467887493,0.3608,69106.0,69103.0,0.072365]
[1729467890694,0.3863929,69106.0,69103.0,0.072365]
[1729467891985,0.3863929,69106.0,69100.0,0.00217061]
[1729467892193,0.3863929,69106.0,69092.0,0.08967911]
[1729467892194,0.48868,69105.0,69092.0,0.08967911]
[1729467892489,0.48868,69105.0,69084.0,0.00076]
[1729467892490,0.3608,69095.0,69084.0,0.00076]
[1729467892696,0.3608,69087.0,69078.0,0.072392]
[1729467893190,0.3608,69087.0,69076.0,0.45057911]
[1729467893493,0.3608,69087.0,69083.0,0.072387]
[1729467893682,0.3608,69087.0,69076.0,0.44977911]
[1729467893877,0.3608,69087.0,69079.0,0.07456227]
[1729467894377,0.3608,69087.0,69080.0,0.07239]
[1729467896285,0.3608,69081.0,69076.0,0.03198]
[1729467896493,0.072392,69078.0,69076.0,0.0311]
[1729467898794,0.38733469,69087.0,69078.0,0.072392]
[1729467898795,0.072387,69083.0,69078.0,0.072392]
[1729467900090,0.074387,69083.0,69078.0,0.072392]
[1729467900486,0.074387,69083.0,69080.0,0.07239]
[1729467900487,0.002,69083.0,69080.0,0.07239]
[1729467901094,0.002,69083.0,69077.0,0.072392]
[1729467901492,0.005,69083.0,69077.0,0.072392]
[1729467902903,0.005,69083.0,69078.0,0.072391]
[1729467903397,0.003,69083.0,69078.0,0.072391]
[1729467903604,0.005,69083.0,69078.0,0.072391]
[1729467903799,0.005,69083.0,69082.0,0.072388]
[1729467903993,0.38623908,69087.0,69076.0,0.07427764]
[1729467904303,0.002,69083.0,69077.0,0.072393]
[1729467904498,0.002,69083.0,69082.0,0.072388]
[1729467904707,0.005,69083.0,69082.0,0.072388]
[1729467905206,0.002,69083.0,69082.0,0.072388]
[1729467906005,0.003,69083.0,69082.0,0.072388]
[1729467906894,0.005,69083.0,69082.0,0.072388]
[1729467907506,0.3608,69095.0,69082.0,0.867468]
[1729467907808,0.072376,69094.0,69089.0,0.07238]
[1729467908106,0.3608,69095.0,69090.0,0.0316]
[1729467908107,0.072379,69091.0,69090.0,0.0316]
[1729467908501,0.065,69094.0,69083.0,0.04317899]
[1729467909005,0.065,69094.0,69081.0,0.04317899]
[1729467909006,0.07223597,69094.0,69081.0,0.04317899]
[1729467909194,0.072386,69084.0,69080.0,0.04317899]
[1729467909397,0.072386,69084.0,69079.0,0.072391]
[1729467909611,0.3608,69088.0,69078.0,0.0333]
[1729467909806,0.07239,69081.0,69078.0,0.0333]
[1729467910204,0.072391,69080.0,69078.0,0.0333]
[1729467912117,0.09975185,69080.0,69078.0,0.0373]
[1729467912315,0.10075185,69080.0,69078.0,0.0443]
[1729467912911,0.02836085,69080.0,69078.0,0.0443]
[1729467913103,0.072391,69079.0,69078.0,0.011]
[1729467914713,0.072391,69079.0,69078.0,0.004]
[1729467914914,0.073391,69079.0,69078.0,0.01]
[1729467915115,0.073391,69079.0,69078.0,0.006]
[1729467915318,0.074391,69079.0,69078.0,0.01]
[1729467915521,0.073391,69079.0,69078.0,0.004]
[1729467915717,0.001,69079.0,69078.0,0.078392]
[1729467916014,0.02636085,69080.0,69078.0,0.074392]
[1729467916215,0.02636085,69080.0,69078.0,0.04831332]
[1729467916216,0.07239,69080.0,69078.0,0.04831332]
[1729467917516,0.07239,69080.0,69079.0,0.04331332]
[1729467918417,0.07239,69080.0,69078.0,0.04631332]
[1729467918612,0.07239,69080.0,69079.0,0.04331332]
[1729467919215,0.07239,69080.0,69079.0,0.04431332]
[1729467919615,0.07239,69080.0,69079.0,0.003]
[1729467921008,0.38749439,69082.0,69079.0,0.003]
[1729467921409,0.45988239,69082.0,69081.0,0.04337337]
[1729467921721,0.45988239,69082.0,69079.0,0.003]
[1729467921722,0.45988239,69082.0,69080.0,0.05787911]
[1729467922737,0.072389,69081.0,69080.0,0.0578751]
[1729467923230,0.38849439,69082.0,69079.0,0.0578751]
[1729467923431,0.07239,69080.0,69079.0,0.0578751]
[1729467924533,0.38849439,69082.0,69079.0,0.0578751]
[1729467924734,0.07239,69080.0,69079.0,0.0588751]
[1729467924933,0.07239,69080.0,69079.0,0.0598751]
[1729467925128,0.07239,69080.0,69079.0,0.002]
[1729467925334,0.07239,69080.0,69079.0,0.001]
[1729467925530,0.07339,69080.0,69079.0,0.001]
[1729467925724,0.07339,69080.0,69079.0,0.0588751]
[1729467926031,0.07339,69080.0,69060.0,0.033]
[1729467926032,0.072393,69077.0,69076.0,0.0578751]
[1729467926235,0.001,69080.0,69075.0,0.0578751]
[1729467926435,0.3926,69076.0,69075.0,0.0578751]
[1729467926832,0.3926,69076.0,69069.0,0.07231232]
[1729467926833,0.072395,69075.0,69074.0,0.0578751]
[1729467927526,0.072395,69075.0,69069.0,0.07231232]
[1729467927727,0.072395,69075.0,69074.0,0.05786468]
[1729467928931,0.072396,69074.0,69073.0,0.05786468]
[1729467929428,0.072396,69074.0,69073.0,0.05785742]
[1729467930141,0.073396,69074.0,69073.0,0.06185742]
[1729467930842,0.074396,69074.0,69073.0,0.009]
[1729467931234,0.074396,69074.0,69073.0,0.06685742]
[1729467931430,0.074396,69074.0,69073.0,0.009]
[1729467931634,0.002,69074.0,69073.0,0.081398]
[1729467931835,0.002,69074.0,69073.0,0.19176414]
[1729467935643,0.074396,69074.0,69073.0,0.19176414]
[1729467935843,0.074396,69074.0,69073.0,0.081398]
[1729467936038,0.074396,69074.0,69073.0,0.009]
[1729467936649,0.074396,69074.0,69073.0,0.081398]
[1729467937539,0.074396,69074.0,69073.0,0.15371223]
[1729467938238,0.074396,69074.0,69073.0,0.081398]
[1729467941451,0.002,69074.0,69073.0,0.081398]
[1729467943744,0.002,69074.0,69073.0,0.076398]
[1729467946246,0.002,69074.0,69073.0,0.14871223]
[1729467946943,0.002,69074.0,69073.0,0.076398]
[1729467947746,0.002,69074.0,69073.0,0.14871223]
[1729467948264,0.002,69074.0,69073.0,0.18676504]
[1729467948844,0.002,69074.0,69073.0,0.25914691]
[1729467949349,0.002,69074.0,69073.0,0.18676342]
[1729467950346,0.0021719,69089.0,69088.0,0.072382]
[1729467950543,0.02866725,69089.0,69088.0,0.072382]
[1729467951754,0.0041719,69089.0,69088.0,0.072382]
[1729467952050,0.0071719,69089.0,69088.0,0.072382]
[1729467952252,0.00116,69094.0,69093.0,0.072377]
[1729467952445,0.072365,69104.0,69093.0,0.3608]
[1729467952639,1.572367,69102.0,69098.0,0.072371]
[1729467952853,0.072368,69101.0,69099.0,0.04337743]
[1729467953161,0.072369,69100.0,69097.0,0.04337743]
[1729467953343,0.07237,69099.0,69096.0,0.11575043]